bitfinex/quotes_SOLUSD_20250204
["timestamp","ask_amount","ask_price","bid_price","bid_amount"]
[1738707280105,38.01312143,203.5,203.33,0.25098]
[1738707280106,38.01312143,203.46,203.38,38.01312143]
[1738707280731,38.01312143,203.44,203.36,38.01312143]
[1738707281113,38.01312143,203.44,203.34,38.13861143]
[1738707281301,38.01312143,203.44,203.35,0.12549]
[1738707281498,38.01312143,203.46,203.38,0.25098]
[1738707281701,38.01312143,203.57,203.48,20.0]
[1738707281911,0.13195613,203.58,203.56,312.0]
[1738707282116,0.13195613,203.58,203.57,0.12549]
[1738707282297,0.13195613,203.58,203.57,14.39951361]
[1738707282715,0.13195613,203.58,203.57,14.65049361]
[1738707282928,0.10426225,203.6,203.58,1.0]
[1738707283124,0.10426225,203.6,203.59,96.76271019]
[1738707283307,0.09288932,203.61,203.6,13.91380853]
[1738707283504,0.094862,203.62,203.6,13.91380853]
[1738707283833,0.00183456,203.63,203.61,38.01312143]
[1738707284330,0.00183456,203.63,203.62,13.66282853]
[1738707285616,0.00183456,203.63,203.62,312.25098]
[1738707286412,0.00183456,203.63,203.62,312.0]
[1738707287303,0.00183456,203.63,203.62,312.12549]
[1738707287502,0.00183456,203.63,203.62,312.0]
[1738707288836,0.10854237,203.63,203.62,312.0]
[1738707289204,38.3726438,203.63,203.62,312.0]
[1738707289518,38.3726438,203.63,203.46,1.0]
[1738707289519,39.1216638,203.63,203.49,38.01312143]
[1738707289724,39.1216638,203.63,203.51,38.01312143]
[1738707289725,38.01312143,203.61,203.51,38.01312143]
[1738707290043,0.12549,203.6,203.51,38.01312143]
[1738707290403,38.01312143,203.61,203.51,38.01312143]
[1738707290607,38.01312143,203.59,203.49,38.13861143]
[1738707290823,0.12549,203.61,203.43,1.602]
[1738707291010,38.01312143,203.55,203.45,38.01312143]
[1738707291443,38.11982924,203.63,203.55,20.0]
[1738707291612,38.11982924,203.63,203.56,38.01312143]
[1738707291613,0.10670781,203.63,203.56,38.01312143]
[1738707292313,0.10670781,203.63,203.62,312.0]
[1738707292510,0.23219781,203.63,203.62,312.0]
[1738707292711,1.0,203.62,203.5,38.01312143]
[1738707292915,38.11982924,203.63,203.54,38.01312143]
[1738707293124,0.10670781,203.63,203.58,38.01312143]
[1738707293407,0.10670781,203.63,203.62,20.0]
[1738707293619,0.10670781,203.63,203.62,52.41251585]
[1738707293823,0.03228925,203.67,203.66,20.25098]
[1738707294029,0.00404704,203.72,203.71,20.0]
[1738707294211,0.03,203.79,203.71,58.01312143]
[1738707294959,38.04312143,203.79,203.71,20.0]
[1738707295449,38.04312143,203.79,203.71,58.01312143]
[1738707295747,0.12549,203.72,203.71,312.0]
[1738707296048,38.01312143,203.75,203.71,312.0]
[1738707296350,38.01312143,203.73,203.63,38.01312143]
[1738707296723,0.25098,203.72,203.63,38.01312143]
[1738707296923,38.01312143,203.7,203.62,0.063]
[1738707297340,38.01312143,203.66,203.62,0.063]
[1738707297624,38.01312143,203.64,203.62,0.063]
[1738707298337,13.53733853,203.63,203.62,0.063]
[1738707298538,14.53733853,203.63,203.62,0.063]
[1738707299052,13.53733853,203.63,203.62,0.063]
[1738707299361,14.78831853,203.63,203.62,0.063]
[1738707299723,39.01312143,203.64,203.62,0.063]
[1738707299724,38.01312143,203.64,203.62,0.063]
[1738707299948,44.76402143,203.69,203.62,0.063]
[1738707300259,6.7509,203.77,203.71,20.0]
[1738707300468,38.04312143,203.79,203.71,0.12549]
[1738707300626,38.01312143,203.77,203.68,38.01312143]
[1738707300817,0.03,203.79,203.66,38.01312143]
[1738707300818,38.01312143,203.75,203.66,38.01312143]
[1738707301139,38.04312143,203.79,203.7,38.01312143]
[1738707301319,38.04312143,203.79,203.74,20.0]
[1738707301537,0.03,203.79,203.78,0.37647]
[1738707301737,14.99051623,203.86,203.81,20.0]
[1738707302043,14.99051623,203.86,203.84,58.13861143]
[1738707302243,14.99051623,203.86,203.84,58.01312143]
[1738707302451,14.99051623,203.86,203.84,71.92692996]
[1738707302668,0.03,203.87,203.84,58.13861143]
[1738707302870,0.03,203.87,203.86,350.01312143]
[1738707303162,0.03,203.87,203.86,312.0]
[1738707303362,38.04312143,203.87,203.86,312.0]
[1738707303541,0.03,203.87,203.86,312.0]
[1738707304344,0.03,203.87,203.86,350.26410143]
[1738707304546,0.03,203.87,203.86,350.01312143]
[1738707304751,0.03,203.87,203.86,312.0]
[1738707304954,0.03,203.87,203.86,363.80143996]
[1738707305546,0.03,203.87,203.86,350.26410143]
[1738707305738,0.03,203.87,203.86,350.13861143]
[1738707306051,0.03,203.87,203.86,312.0]
[1738707306575,0.03,203.87,203.86,312.12549]
[1738707306876,0.03,203.87,203.86,312.0]
[1738707308347,0.03,203.87,203.86,350.26410143]
[1738707308570,0.03,203.87,203.86,350.38959143]
[1738707308781,0.12538625,203.87,203.86,363.92692996]
[1738707308998,0.12538625,203.87,203.86,401.94005139]
[1738707309280,38.01312143,204.05,203.91,0.12549]
[1738707309451,38.01312143,204.05,203.91,38.51508143]
[1738707310080,38.01312143,204.07,203.91,53.66228847]
[1738707310278,38.01312143,204.05,203.91,39.25039396]
[1738707310593,38.01312143,204.05,203.91,0.50196]
[1738707310789,38.01312143,204.07,203.91,13.91380853]
[1738707311080,38.01312143,204.05,203.91,13.91380853]
[1738707311290,38.01312143,204.05,203.91,0.25098]
[1738707311462,38.01312143,204.1,203.91,0.25098]
[1738707311463,38.01312143,204.01,203.91,0.25098]
[1738707311660,38.01312143,203.97,203.88,38.01312143]
[1738707311861,38.01312143,204.01,203.91,0.12549]
[1738707312083,38.01312143,204.01,203.91,0.50196]
[1738707312287,38.01312143,204.05,203.91,0.25098]
[1738707312582,38.01312143,204.05,203.91,312.50196]
[1738707312960,0.03,204.08,203.94,21.25098]
[1738707313166,0.03,204.08,203.99,0.25098]
[1738707313490,0.03,204.08,203.93,1.0]
[1738707313491,0.12549,204.06,203.97,38.01312143]
[1738707313786,38.01312143,204.03,203.94,38.01312143]
[1738707314086,38.01312143,203.95,203.86,38.01312143]
[1738707314662,38.01312143,203.93,203.84,38.01312143]
[1738707315075,38.04312143,204.08,203.91,39.01312143]
[1738707315384,0.03,204.08,204.04,38.01312143]
[1738707315552,0.03,204.08,204.06,38.01312143]
[1738707315756,0.03,204.08,204.04,38.01312143]
[1738707315989,0.03,204.08,204.06,38.01312143]
[1738707316161,0.03,204.08,204.07,312.0]
[1738707316968,38.04312143,204.08,203.96,38.01312143]
[1738707317272,38.01312143,204.06,203.96,38.01312143]
[1738707317576,38.01312143,204.02,203.94,38.01312143]
[1738707317879,38.01312143,204.02,203.94,20.0]
[1738707318479,38.01312143,203.99,203.94,20.0]
[1738707318680,0.12549,203.96,203.89,38.01312143]
[1738707318981,38.01312143,203.93,203.85,38.01312143]
[1738707319164,38.01312143,203.87,203.77,38.01312143]
[1738707319370,38.01312143,203.85,203.75,38.01312143]
[1738707319565,38.01312143,203.83,203.74,0.063]
[1738707319884,13.53733853,203.71,203.61,38.01312143]
[1738707320194,0.12549,203.66,203.65,312.0]
[1738707320354,13.53733853,203.65,203.55,14.99051623]
[1738707320556,38.01312143,203.65,203.55,53.00363766]
[1738707320786,6.44,203.78,203.59,38.01312143]
[1738707320787,39.01312143,203.69,203.59,38.01312143]
[1738707320994,38.01312143,203.71,203.61,38.01312143]
[1738707321276,38.01312143,203.71,203.55,14.99051623]
[1738707321455,38.01312143,203.69,203.59,38.01312143]
[1738707321661,38.01312143,203.73,203.65,38.01312143]
[1738707321861,7.5484,203.79,203.6,38.01312143]
[1738707321862,14.990517,203.77,203.72,0.25098]
[1738707322069,44.56152143,203.79,203.69,38.01312143]
[1738707322294,0.12549,203.76,203.7,20.0]
[1738707322465,6.5484,203.79,203.71,38.26410143]
[1738707322670,38.01312143,203.77,203.67,38.01312143]
[1738707322870,13.66282853,203.76,203.69,38.01312143]
[1738707323074,13.66282853,203.76,203.67,38.01312143]
[1738707323386,38.01312143,203.75,203.65,38.01312143]
[1738707323586,38.01312143,203.77,203.67,38.01312143]
[1738707323786,13.66282853,203.76,203.68,0.25098]
[1738707323957,21.22580581,203.76,203.67,21.22263696]
[1738707324259,6.5484,203.79,203.72,20.0]
[1738707324660,38.01312143,203.74,203.65,38.01312143]
[1738707324859,0.12549,203.73,203.65,38.01312143]
[1738707325060,0.12549,203.73,203.69,20.0]
[1738707325480,0.12549,203.73,203.64,38.01312143]
[1738707325689,38.13861143,203.73,203.64,38.01312143]
[1738707325886,38.01312143,203.73,203.64,38.01312143]
[1738707326099,44.56152143,203.79,203.7,0.25098]
[1738707326268,67.9941539,203.84,203.78,312.0]
[1738707326582,29.98103247,203.84,203.78,312.0]
[1738707326783,29.98103247,203.84,203.76,38.01312143]
[1738707327088,38.01312143,203.8,203.72,38.01312143]
[1738707327261,38.01312143,203.81,203.72,38.01312143]
[1738707327465,38.01312143,203.83,203.75,0.25098]
[1738707327666,38.01312143,203.81,203.75,20.0]
[1738707327878,38.01312143,203.81,203.73,0.25098]
[1738707328076,38.01312143,203.79,203.73,20.0]
[1738707328285,29.98103247,203.84,203.76,38.01312143]
[1738707328593,0.12549,203.83,203.76,38.01312143]
[1738707328764,0.10764456,203.77,203.76,38.01312143]
[1738707329465,0.10764456,203.77,203.76,20.0]
[1738707329767,13.66282853,203.76,203.64,38.01312143]
[1738707329974,38.01312143,203.72,203.64,38.01312143]
[1738707330287,38.01312143,203.72,203.67,20.0]
[1738707330472,38.01312143,203.7,203.62,0.063]
[1738707330668,38.01312143,203.65,203.62,0.063]
[1738707330871,38.13861143,203.63,203.62,0.063]
[1738707331188,38.26410143,203.63,203.62,0.063]
[1738707331689,53.67594996,203.63,203.62,0.063]
[1738707331997,53.67594996,203.63,203.53,0.063]
[1738707331998,0.25098,203.57,203.53,0.063]
[1738707332196,51.67594996,203.54,203.53,0.063]
[1738707332399,1.0,203.56,203.39,1.24165622]
[1738707332400,0.12549,203.47,203.39,1.24165622]
[1738707332725,38.13861143,203.52,203.42,38.01312143]
[1738707333004,38.01312143,203.48,203.46,312.0]
[1738707333502,0.25098,203.43,203.34,0.063]
[1738707333671,38.01312143,203.39,203.34,0.063]
[1738707334092,51.42504996,203.35,203.34,0.063]
[1738707334400,37.76222143,203.35,203.34,0.063]
[1738707334697,38.01320143,203.35,203.34,0.063]
[1738707334991,51.42504996,203.35,203.34,0.063]
[1738707335571,38.01312143,203.39,203.34,0.063]
[1738707335773,38.01312143,203.41,203.34,0.063]
[1738707336000,38.01312143,203.39,203.34,0.063]
[1738707336181,38.01312143,203.37,203.34,0.063]
[1738707336382,0.25098,203.36,203.35,312.0]
[1738707336579,13.66282853,203.32,203.18,38.01312143]
[1738707336782,38.01312143,203.28,203.18,38.01312143]
[1738707336986,38.01312143,203.26,203.18,38.01312143]
[1738707337191,38.01312143,203.23,203.16,0.063]
[1738707337390,1.25098,203.28,203.16,0.063]
[1738707337391,38.01312143,203.21,203.16,0.063]
[1738707337708,38.01312143,203.17,203.16,0.063]
[1738707337884,51.42496996,203.17,203.16,0.063]
[1738707338399,38.01312143,203.17,203.16,0.063]
[1738707338604,51.42496996,203.17,203.16,0.063]
[1738707339500,52.80143996,203.17,203.16,0.063]
[1738707340006,51.80143996,203.17,203.16,0.063]
[1738707340188,51.55045996,203.17,203.16,0.063]
[1738707340681,51.67594996,203.17,203.16,0.063]
[1738707341292,38.01312143,203.22,203.16,0.063]
[1738707341477,38.01312143,203.3,203.16,0.063]
[1738707341478,38.01312143,203.24,203.16,0.063]
[1738707341986,38.01312143,203.22,203.16,0.063]
[1738707342300,13.66282853,203.25,203.16,38.07612143]
[1738707342480,13.66282853,203.25,203.18,38.01312143]
[1738707342676,38.01312143,203.19,203.16,0.063]
[1738707343395,38.01312143,203.18,203.16,0.063]
[1738707343596,15.91380853,203.17,203.16,0.063]
[1738707343775,13.66282853,203.13,202.98,38.01312143]
[1738707343977,38.01312143,203.08,203.03,20.0]
[1738707344495,13.53733853,203.08,203.07,312.0]
[1738707344694,51.55045996,203.08,203.07,312.0]
[1738707344898,51.55045996,203.08,202.97,20.0]
[1738707345075,13.53733853,203.04,202.97,20.0]
[1738707345392,38.01312143,203.03,202.96,0.063]
[1738707345598,38.01312143,203.01,202.96,0.063]
[1738707345773,38.01312143,203.03,202.97,20.0]
[1738707345975,38.01312143,203.05,202.97,20.0]
[1738707346373,38.01312143,203.07,202.98,38.26410143]
[1738707346579,38.01312143,203.09,202.98,38.26410143]
[1738707346802,38.01312143,203.03,202.96,0.063]
[1738707346991,38.01312143,203.01,202.96,0.063]
[1738707347495,38.01312143,202.99,202.96,0.063]
[1738707347899,38.13861143,202.99,202.98,312.0]
[1738707348077,38.26410143,202.99,202.98,312.0]
[1738707348675,0.25098,202.98,202.95,0.063]
[1738707348900,38.26410143,202.96,202.95,0.063]
[1738707349107,51.67594996,202.96,202.95,0.063]
[1738707350710,0.09984076,202.99,202.95,38.07612143]
[1738707350893,0.09984076,202.99,202.98,20.0]
[1738707351085,0.09984076,202.99,202.98,0.25098]
[1738707351693,0.09984076,202.99,202.98,312.50196]
[1738707352004,0.09984076,202.99,202.98,312.25098]
[1738707352206,0.09984076,202.99,202.98,325.66282853]
[1738707352509,0.10007164,203.01,203.0,1.0]
[1738707352684,0.10007164,203.01,203.0,112.6786439]
[1738707352880,0.10588733,203.02,203.01,13.91380853]
[1738707353081,38.01312143,203.23,203.04,20.25098]
[1738707353298,38.01312143,203.25,203.07,15.91380853]
[1738707353504,38.01312143,203.36,203.2,0.25098]
[1738707353701,38.01312143,203.42,203.33,20.0]
[1738707353908,38.01312143,203.44,203.35,0.12549]
[1738707354103,111.42648587,203.59,203.41,20.0]
[1738707354104,38.01312143,203.48,203.41,20.0]
[1738707354294,38.01312143,203.54,203.47,20.0]
[1738707354487,38.01312143,203.54,203.44,38.01312143]
[1738707354718,38.01312143,203.52,203.42,38.01312143]
[1738707354886,38.01312143,203.52,203.36,6.36]
[1738707354887,38.01312143,203.56,203.49,20.0]
[1738707355081,38.01312143,203.58,203.51,20.0]
[1738707355281,38.01312143,203.6,203.53,20.0]
[1738707355584,13.66282853,203.53,203.39,38.01312143]
[1738707355797,13.66282853,203.53,203.46,20.0]
[1738707355798,38.01312143,203.53,203.46,20.0]
[1738707356003,38.01312143,203.57,203.48,20.0]
[1738707356179,38.01312143,203.57,203.5,20.0]
[1738707356383,38.01312143,203.51,203.43,38.01312143]
[1738707356606,38.01312143,203.51,203.46,20.0]
[1738707356607,0.12549,203.5,203.46,20.0]
[1738707356811,38.01312143,203.49,203.46,20.0]
[1738707356985,38.01312143,203.49,203.33,20.660748]
[1738707356986,38.01312143,203.47,203.37,38.01312143]
[1738707357303,38.01312143,203.47,203.31,1.73727811]
[1738707357304,38.01312143,203.5,203.41,38.01312143]
[1738707357500,38.01312143,203.5,203.33,1.0]
[1738707357501,13.53733853,203.49,203.42,20.0]
[1738707357706,38.01312143,203.46,203.42,20.0]
[1738707357892,38.01312143,203.44,203.35,38.01312143]
[1738707358098,13.53733853,203.45,203.36,0.25098]
[1738707358297,38.01312143,203.44,203.38,20.0]
[1738707358606,38.01312143,203.44,203.29,14.41184853]
[1738707358607,13.41184853,203.43,203.33,38.01312143]
[1738707358791,38.01312143,203.46,203.36,38.01312143]
[1738707359107,38.01312143,203.46,203.3,38.01312143]
[1738707359108,38.01312143,203.5,203.4,38.01312143]
[1738707359414,38.01312143,203.5,203.31,0.25098]
[1738707359415,38.01312143,203.46,203.36,38.01312143]
[1738707359712,0.25098,203.43,203.34,0.25098]
[1738707359912,38.01312143,203.42,203.34,0.25098]
[1738707360114,0.25098,203.43,203.36,0.25098]
[1738707360406,0.25098,203.43,203.36,0.12549]
[1738707360911,0.12549,203.52,203.36,0.12549]
[1738707360912,38.01312143,203.56,203.42,0.25098]
[1738707361113,38.01312143,203.56,203.48,38.01312143]
[1738707361411,38.01312143,203.6,203.52,0.25098]
[1738707361611,38.01312143,203.66,203.59,312.0]
[1738707361811,6.228,203.7,203.59,312.0]
[1738707361812,38.01312143,203.61,203.59,312.0]
[1738707361992,38.13861143,203.6,203.45,38.01312143]
[1738707362189,38.01312143,203.62,203.52,38.01312143]
[1738707362400,38.01312143,203.63,203.54,0.12549]
[1738707362606,0.03,203.69,203.58,0.12549]
[1738707362607,38.01312143,203.66,203.58,0.12549]
[1738707362815,0.03,203.69,203.61,0.25098]
[1738707362994,0.03,203.69,203.62,0.25098]
[1738707363330,0.03,203.69,203.68,0.25098]
[1738707363494,0.03,203.84,203.72,0.25098]
[1738707363691,0.03,203.84,203.71,58.01312143]
[1738707363889,38.01312143,203.78,203.69,38.01312143]
[1738707364225,38.01312143,203.78,203.72,20.0]
[1738707364405,0.25098,203.77,203.72,20.0]
[1738707364591,0.03,203.84,203.75,0.25098]
[1738707364592,38.01312143,203.82,203.75,0.25098]
[1738707364787,38.01312143,203.82,203.68,1.25098]
[1738707364788,0.03,203.84,203.79,38.01312143]
[1738707365108,38.01312143,203.81,203.71,38.01312143]
[1738707365311,38.01312143,203.79,203.72,0.25098]
[1738707365517,38.01312143,203.79,203.69,38.01312143]
[1738707365714,13.66282853,203.78,203.7,0.25098]
[1738707365914,0.25098,203.74,203.65,38.01312143]
[1738707366113,38.01312143,203.73,203.65,38.01312143]
[1738707366324,13.66282853,203.7,203.61,38.01312143]
[1738707366528,38.01312143,203.67,203.57,38.01312143]
[1738707366827,0.25098,203.64,203.57,38.01312143]
[1738707367027,38.01312143,203.65,203.6,20.0]
[1738707367203,1.0,203.73,203.6,20.0]
[1738707367204,38.01312143,203.67,203.6,20.0]
[1738707367527,38.01312143,203.67,203.58,0.25098]
[1738707367727,13.66282853,203.66,203.57,38.01312143]
[1738707367917,38.01312143,203.65,203.64,312.0]
[1738707368304,38.26410143,203.65,203.64,312.0]
[1738707368824,51.7820872,203.65,203.64,312.0]
[1738707369317,0.25098,203.63,203.53,38.01312143]
[1738707369524,38.01312143,203.61,203.51,38.01312143]
[1738707369705,38.01312143,203.54,203.45,38.01312143]
[1738707369903,38.01312143,203.52,203.41,38.01312143]
[1738707370112,0.25098,203.53,203.37,38.01312143]
[1738707370113,38.01312143,203.46,203.37,38.01312143]
[1738707370518,38.01312143,203.42,203.33,38.01312143]
[1738707370727,0.12549,203.41,203.31,38.01312143]
[1738707370911,38.01312143,203.38,203.29,38.01312143]
[1738707371105,0.12549,203.41,203.33,38.01312143]
[1738707371413,38.01312143,203.46,203.37,38.01312143]
[1738707371623,13.53733853,203.45,203.37,38.01312143]
[1738707371820,38.01312143,203.5,203.41,38.01312143]
[1738707372024,1.22655423,203.63,203.45,38.01312143]
[1738707372025,38.01312143,203.54,203.45,38.01312143]
[1738707372232,38.01312143,203.6,203.51,38.01312143]
[1738707372532,38.01312143,203.62,203.53,38.01312143]
[1738707372718,0.10613724,203.65,203.55,38.01312143]
[1738707372929,38.01312143,203.64,203.56,0.25098]
[1738707373236,0.10613724,203.65,203.58,0.25098]
[1738707373648,0.12549,203.61,203.51,38.01312143]
[1738707373850,0.12549,203.61,203.46,38.01312143]
[1738707373851,38.01312143,203.56,203.46,38.01312143]
[1738707374041,38.01312143,203.62,203.53,0.25098]
[1738707374418,0.25098,203.57,203.48,58.01312143]
[1738707374618,38.01312143,203.56,203.46,38.01312143]
[1738707374819,38.01312143,203.54,203.44,38.01312143]
[1738707375057,38.01312143,203.6,203.52,38.01312143]
[1738707375227,38.01312143,203.62,203.53,0.25098]
[1738707375423,0.10613724,203.65,203.56,38.01312143]
[1738707375636,13.76896577,203.65,203.62,312.0]
[1738707375830,0.25098,203.63,203.62,312.0]
[1738707376035,0.10613724,203.65,203.58,38.26410143]
[1738707376342,0.10613724,203.65,203.64,38.26410143]
[1738707376563,0.10613724,203.65,203.64,38.13861143]
[1738707377064,0.10613724,203.65,203.64,38.26410143]
[1738707377263,0.10613724,203.65,203.64,58.13861143]
[1738707377547,0.10613724,203.65,203.64,20.0]
[1738707377724,0.10613724,203.65,203.64,20.25098]
[1738707378341,0.10613724,203.65,203.58,38.01312143]
[1738707378535,0.10613724,203.65,203.61,20.0]
[1738707378733,0.10613724,203.65,203.59,0.25098]
[1738707378734,0.10613724,203.65,203.64,0.25098]
[1738707379025,0.10613724,203.65,203.64,0.12549]
[1738707379328,0.10613724,203.65,203.64,312.50196]
[1738707379530,0.10613724,203.65,203.64,327.91380853]
[1738707379746,0.10613724,203.65,203.64,325.91380853]
[1738707380048,0.10613724,203.65,203.64,326.91380853]
[1738707380360,0.10613724,203.65,203.64,312.25098]
[1738707380645,0.06355689,203.68,203.67,20.0]
[1738707380847,0.06355689,203.68,203.67,59.74946445]
[1738707381049,0.06355689,203.68,203.67,73.66327298]
[1738707381227,0.06355689,203.68,203.67,58.51508143]
[1738707381426,0.06355689,203.68,203.67,58.26410143]
[1738707381732,0.06355689,203.68,203.65,38.01312143]
[1738707381926,0.06355689,203.68,203.67,38.01312143]
[1738707382129,0.06355689,203.68,203.67,20.0]
[1738707382858,0.06355689,203.68,203.67,58.26410143]
[1738707383036,0.06355689,203.68,203.67,38.26410143]
[1738707383428,0.06355689,203.68,203.67,38.13861143]
[1738707383858,0.06355689,203.68,203.67,350.51508143]
[1738707384033,0.10234128,203.7,203.68,1.50196]
[1738707384235,0.10234128,203.7,203.68,2.2380402]
[1738707384640,0.10234128,203.7,203.68,15.64988873]
[1738707385264,0.10234128,203.7,203.68,0.25098]
[1738707385474,0.10234128,203.7,203.67,38.01312143]
[1738707385753,0.10234128,203.7,203.63,38.01312143]
[1738707385967,38.11826455,203.69,203.59,38.01312143]
[1738707386163,13.41184853,203.68,203.59,38.01312143]
[1738707386369,38.01312143,203.67,203.57,38.01312143]
[1738707386858,38.01312143,203.61,203.51,38.01312143]
[1738707387170,38.01312143,203.59,203.51,38.01312143]
[1738707387539,38.01312143,203.59,203.49,38.01312143]
[1738707387733,38.01312143,203.57,203.48,58.32]
[1738707387939,38.01312143,203.52,203.43,38.01312143]
[1738707388138,13.41184853,203.49,203.41,38.01312143]
[1738707388342,38.01312143,203.48,203.39,38.01312143]
[1738707388576,13.41184853,203.47,203.4,20.0]
[1738707388877,0.09792182,203.4,203.33,38.01312143]
[1738707389083,0.09792182,203.4,203.37,38.01312143]
[1738707389239,0.09792182,203.4,203.35,38.01312143]
[1738707389576,0.09792182,203.4,203.28,58.28]
[1738707389577,0.09792182,203.4,203.31,38.01312143]
[1738707389764,38.01312143,203.38,203.29,38.01312143]
[1738707389961,13.41184853,203.37,203.29,38.01312143]
[1738707390380,38.01312143,203.39,203.36,312.0]
[1738707390582,0.09792182,203.4,203.39,20.0]
[1738707390806,0.09792182,203.4,203.39,20.25098]
[1738707391096,0.09792182,203.4,203.39,14.65113467]
[1738707391468,0.09792182,203.4,203.39,38.26410143]
[1738707392383,0.09792182,203.4,203.39,90.94005139]
[1738707392584,4.465e-05,203.49,203.42,20.50196]
[1738707392799,4.465e-05,203.49,203.48,76.52820286]
[1738707392977,4.465e-05,203.49,203.48,90.67691499]
[1738707393176,4.465e-05,203.49,203.48,38.26410143]
[1738707393692,38.01312143,203.68,203.52,20.50196]
[1738707393902,0.03,203.69,203.61,38.01312143]
[1738707394101,0.03,203.69,203.63,38.01312143]
[1738707394300,0.03,203.69,203.65,38.01312143]
[1738707394598,0.03,203.69,203.63,38.01312143]
[1738707395190,0.03,203.69,203.59,38.01312143]
[1738707395430,13.41184853,203.67,203.62,20.0]
[1738707395601,13.41184853,203.67,203.59,38.01312143]
[1738707395602,38.01312143,203.66,203.57,38.01312143]
[1738707396318,13.41184853,203.63,203.58,20.0]
[1738707396496,38.01312143,203.68,203.6,20.0]
[1738707396810,38.01312143,203.68,203.58,20.0]
[1738707396811,13.66282853,203.65,203.57,38.01312143]
[1738707397011,0.03,203.69,203.55,38.01312143]
[1738707397012,38.01312143,203.64,203.55,38.01312143]
[1738707397215,38.26410143,203.62,203.53,38.01312143]
[1738707397396,38.01312143,203.6,203.49,38.01312143]
[1738707397592,13.41184853,203.61,203.53,38.01312143]
[1738707397787,13.41184853,203.59,203.51,38.01312143]
[1738707397993,38.01312143,203.58,203.49,38.01312143]
[1738707398297,38.01312143,203.62,203.51,38.01312143]
[1738707398504,1.0,203.66,203.51,38.01312143]
[1738707398505,0.12549,203.58,203.51,38.01312143]
[1738707398699,0.12549,203.54,203.45,38.01312143]
[1738707398900,0.12549,203.5,203.43,38.01312143]
[1738707399136,1.12549,203.54,203.39,38.01312143]
[1738707399283,1.7174,203.6,203.4,2.73735564]
[1738707399489,38.01312143,203.63,203.53,38.01312143]
[1738707400009,0.12549,203.58,203.42,0.73695497]
[1738707400204,38.01312143,203.56,203.47,38.01312143]
[1738707400705,13.41184853,203.53,203.42,38.01312143]
[1738707400912,38.01312143,203.5,203.4,38.01312143]
[1738707401213,38.01312143,203.44,203.39,0.063]
[1738707401412,13.41184853,203.43,203.39,0.063]
[1738707401710,38.01312143,203.4,203.39,0.063]
[1738707401918,51.42496996,203.4,203.39,0.063]
[1738707402622,51.67594996,203.4,203.39,0.063]
[1738707403203,51.67594996,203.4,203.39,312.063]
[1738707403605,38.01312143,203.42,203.39,312.063]
[1738707403833,38.01312143,203.42,203.39,0.063]
[1738707404039,38.01312143,203.4,203.39,0.063]
[1738707404203,51.67594996,203.4,203.39,0.063]
[1738707404600,51.80143996,203.4,203.39,0.063]
[1738707405024,51.67594996,203.4,203.39,0.063]
[1738707405528,38.01312143,203.38,203.28,38.01312143]
[1738707405902,38.01312143,203.44,203.36,38.01312143]
[1738707406128,38.04312143,203.48,203.38,38.01312143]
[1738707406328,0.03,203.48,203.45,20.0]
[1738707406643,0.03,203.48,203.47,38.01312143]
[1738707406933,0.03,203.48,203.47,350.01312143]
[1738707407113,0.03,203.48,203.47,350.26410143]
[1738707407918,45.57609871,203.66,203.51,0.25098]
[1738707408231,45.57609871,203.66,203.57,38.01312143]
[1738707408436,7.56297728,203.66,203.59,38.01312143]
[1738707408729,13.53733853,203.61,203.53,38.01312143]
[1738707408916,0.10744143,203.58,203.54,20.0]
[1738707409237,0.10744143,203.58,203.51,38.01312143]
[1738707409408,0.10744143,203.58,203.4,39.01312143]
[1738707409409,0.12549,203.56,203.47,38.01312143]
[1738707409612,38.01312143,203.52,203.43,38.01312143]
[1738707409826,38.01312143,203.54,203.43,38.01312143]
[1738707410042,38.01312143,203.52,203.43,38.01312143]
[1738707410222,13.41184853,203.53,203.43,38.01312143]
[1738707410410,13.41184853,203.53,203.46,0.12549]
[1738707410612,0.10744143,203.58,203.52,38.01312143]
[1738707411031,0.10744143,203.58,203.49,0.12549]
[1738707411032,0.10744143,203.58,203.57,312.0]
[1738707411224,0.10744143,203.58,203.57,350.26410143]
[1738707411425,38.01312143,203.76,203.61,0.50196]
[1738707411625,38.01312143,203.76,203.63,38.01312143]